bitfinex/quotes_SOLUSD_20260221
["timestamp","ask_amount","ask_price","bid_price","bid_amount"]
[1771643804825,41.45544131,84.428,84.39,0.1]
[1771643804826,0.70745671,84.409,84.39,0.1]
[1771643805025,5.02310372,84.4,84.39,0.1]
[1771643805224,0.70745671,84.4,84.39,0.1]
[1771643810123,4.31564701,84.41,84.39,0.1]
[1771643810124,11.84749899,84.406,84.39,0.1]
[1771643810322,0.70745671,84.405,84.39,0.1]
[1771643811538,0.70745671,84.405,84.39,0.76908165]
[1771643811926,11.84749899,84.406,84.39,0.76908165]
[1771643812228,0.70745671,84.439,84.392,0.66908165]
[1771643812420,0.70745671,84.439,84.401,0.66908165]
[1771643813236,0.70745671,84.429,84.401,0.66908165]
[1771643813432,0.70745671,84.427,84.403,0.66908165]
[1771643816036,0.70745671,84.427,84.405,0.66908165]
[1771643816834,11.8444118,84.428,84.405,0.66908165]
[1771643817133,0.70745671,84.442,84.411,0.66908165]
[1771643818218,11.84258831,84.441,84.412,11.84665687]
[1771643818424,12.55004502,84.441,84.413,0.66908165]
[1771643819241,0.70745671,84.44,84.413,0.66908165]
[1771643820445,11.84286881,84.439,84.415,0.66908165]
[1771643820741,11.84132622,84.45,84.421,0.66908165]
[1771643821443,12.54878293,84.45,84.421,0.66908165]
[1771643821942,0.70745671,84.449,84.421,0.66908165]
[1771643823838,0.70745671,84.447,84.422,0.66908165]
[1771643825548,0.70745671,84.447,84.424,0.66908165]
[1771643827531,11.84188712,84.446,84.424,0.66908165]
[1771643828343,11.84188712,84.446,84.425,0.6660303]
[1771643828746,4.31564701,84.46,84.431,0.6660303]
[1771643828747,11.84064708,84.455,84.431,0.6660303]
[1771643829250,11.84064708,84.455,84.441,0.6660303]
[1771643830046,11.8386627,84.469,84.441,0.65554909]
[1771643830426,0.70719331,84.468,84.441,0.65554909]
[1771643831541,11.83894301,84.467,84.441,0.65554909]
[1771643831741,0.70719331,84.466,84.441,0.65554909]
[1771643833936,0.70719331,84.464,84.441,0.65554909]
[1771643835851,0.70719331,84.462,84.441,0.65554909]
[1771643836636,0.70719331,84.462,84.442,12.50521878]
[1771643838862,0.70719331,84.462,84.443,0.66473888]
[1771643840359,0.70719331,84.462,84.444,56.17912168]
[1771643843962,0.70719331,84.462,84.444,56.84515198]
[1771643844957,0.70719331,84.462,84.445,0.6660303]
[1771643855180,0.70719331,84.462,84.446,56.17912168]
[1771643857581,0.70719331,84.462,84.446,56.8612151]
[1771643861058,0.70719331,84.462,84.447,56.17912168]
[1771643867286,0.70719331,84.462,84.447,56.86779443]
[1771643867491,0.70719331,84.462,84.447,0.68867275]
[1771643870789,0.68205759,84.489,84.451,0.69137697]
[1771643871878,0.68205759,84.489,84.461,0.69203656]
[1771643872272,0.68205759,84.499,84.47,4.31285443]
[1771643872479,0.68205759,84.499,84.471,0.69203656]
[1771643873089,12.51665722,84.498,84.471,0.69203656]
[1771643873488,0.68205759,84.497,84.471,0.69203656]
[1771643875974,11.83487975,84.496,84.471,0.69203656]
[1771643876592,12.51693734,84.496,84.471,0.69203656]
[1771643877485,0.68205759,84.495,84.471,0.69203656]
[1771643877685,0.68205759,84.495,84.472,11.83824225]
[1771643877876,0.68205759,84.495,84.473,0.69582966]
[1771643878696,0.68205759,84.508,84.481,0.69644616]
[1771643879689,0.2,84.51,84.491,0.69705367]
[1771643880489,0.2,84.51,84.482,11.83684098]
[1771643880490,0.68205759,84.523,84.501,0.6976527]
[1771643880992,0.68205759,84.521,84.501,0.6976527]
[1771643881608,4.31285443,84.52,84.49,4.31285443]
[1771643881888,0.68205759,84.518,84.49,4.81124245]
[1771643882094,0.68205759,84.529,84.501,0.49838802]
[1771643882784,0.68205759,84.529,84.491,11.83558012]
[1771643882785,0.68205759,84.528,84.497,0.49911479]
[1771643883998,0.68205759,84.526,84.498,0.49983329]
[1771643886602,11.83081928,84.525,84.5,4.81481008]
[1771643886798,0.68205759,84.524,84.5,4.81481008]
[1771643887786,0.68205759,84.524,84.501,56.17912168]
[1771643888690,0.74775034,84.522,84.501,56.17912168]
[1771643889492,0.74775034,84.522,84.501,56.6844336]
[1771643889817,0.74775034,84.522,84.502,0.50531192]
[1771643891592,0.74775034,84.52,84.502,0.50531192]
[1771643893692,0.74775034,84.52,84.503,56.17912168]
[1771643895006,0.74775034,84.518,84.503,56.17912168]
[1771643897200,0.74775034,84.518,84.503,56.68742922]
[1771643897714,0.74775034,84.518,84.503,56.17912168]
[1771643899610,0.74775034,84.518,84.5,4.31285443]
[1771643899611,0.74775034,84.517,84.501,0.50910193]
[1771643900816,0.74775034,84.517,84.485,29.59100804]
[1771643900817,0.74775034,84.509,84.47,4.31285443]
[1771643901512,0.74775034,84.509,84.47,4.82247402]
[1771643901691,0.74775034,84.509,84.471,0.50961959]
[1771643901894,0.74775034,84.499,84.465,0.50961959]
[1771643902290,4.31285443,84.49,84.45,4.31285443]
[1771643902516,0.74775034,84.489,84.45,4.31285443]
[1771643902713,41.42600131,84.488,84.451,0.50988888]
[1771643903012,0.74775034,84.487,84.451,0.50988888]
[1771643903319,0.74775034,84.487,84.46,4.31285443]
[1771643904621,0.74775034,84.485,84.46,4.31285443]
[1771643904812,0.74775034,84.485,84.46,4.82326908]
[1771643905013,11.83628056,84.486,84.47,4.82326908]
[1771643905219,0.74775034,84.49,84.471,0.51041465]
[1771643905220,12.58353786,84.49,84.471,0.51041465]
[1771643907719,0.74775034,84.495,84.471,0.51041465]
[1771643907918,0.74775034,84.5,84.481,0.51113503]
[1771643909326,0.74775034,84.508,84.481,0.51113503]
[1771643909508,0.74775034,84.508,84.483,0.51161211]
[1771643910811,11.83333925,84.507,84.483,0.51161211]
[1771643911122,0.74775034,84.506,84.483,0.51161211]
[1771643912310,0.74775034,84.506,84.482,56.17912168]
[1771643913331,11.83361931,84.505,84.482,56.17912168]
[1771643913513,0.74775034,84.504,84.482,56.17912168]
[1771643913823,0.74775034,84.504,84.476,56.17912168]
[1771643914027,0.74775034,84.504,84.477,0.51250112]
[1771643916533,0.74775034,84.502,84.477,0.51250112]
[1771643917528,0.74775034,84.502,84.477,4.46636979]
[1771643919832,0.68488687,84.5,84.477,4.46636979]
[1771643921520,0.68488687,84.5,84.478,0.51416509]
[1771643922237,0.68488687,84.498,84.478,0.51416509]
[1771643923431,0.68488687,84.496,84.479,3.95386867]
[1771643923841,0.68488687,84.496,84.479,4.46860413]
[1771643924031,0.68488687,84.496,84.48,0.51473546]
[1771643925139,0.68488687,84.494,84.479,3.95386867]
[1771643927914,11.83529996,84.493,84.479,3.95386867]
[1771643928639,12.52018683,84.493,84.479,3.95386867]
[1771643929220,0.68488687,84.492,84.475,0.51510552]
[1771643931937,11.83558012,84.491,84.475,0.51510552]
[1771643934825,0.68488687,84.491,84.469,0.51669966]
[1771643935342,0.68488687,84.491,84.471,0.51669966]
[1771643939036,12.52060707,84.49,84.471,0.51669966]
[1771643939241,0.68488687,84.489,84.471,0.51669966]
[1771643941239,0.68488687,84.487,84.473,0.51767541]
[1771643942352,11.83628056,84.486,84.473,0.51767541]
[1771643943129,12.52116743,84.486,84.473,0.51767541]
[1771643943644,11.83628056,84.486,84.473,0.51767541]
[1771643947048,11.8357202,84.49,84.474,0.5186026]
[1771643947243,12.52060707,84.49,84.474,0.5186026]
[1771643948245,0.74765138,84.489,84.474,0.5186026]
[1771643949251,0.74765138,84.489,84.473,3.95386867]
[1771643949454,0.74765138,84.487,84.473,3.95386867]
[1771643951031,11.83628056,84.486,84.473,3.95386867]
[1771643951240,0.74765138,84.479,84.452,0.51946027]
[1771643952953,0.74765138,84.479,84.454,0.51973966]
[1771643953155,0.74765138,84.477,84.454,0.51973966]
[1771643954655,11.8376817,84.476,84.454,0.51973966]
[1771643954955,0.74765138,84.475,84.454,0.51973966]
[1771643955957,11.83796197,84.474,84.454,0.51973966]
[1771643956153,0.74765138,84.473,84.454,0.51973966]
[1771643956848,4.30943941,84.49,84.461,0.73332336]
[1771643957954,11.83586028,84.489,84.461,0.73332336]
[1771643958259,41.425511,84.489,84.461,0.73332336]
[1771643958744,0.74765138,84.488,84.461,0.73332336]
[1771643960672,0.74765138,84.486,84.461,0.73332336]
[1771643961851,11.83642066,84.485,84.463,0.73332336]
[1771643962051,0.74765138,84.484,84.463,0.73332336]
[1771643963464,0.74765138,84.482,84.463,0.73332336]
[1771643965465,0.74765138,84.48,84.463,0.73332336]
[1771643966669,11.83726133,84.479,84.463,0.73332336]
[1771643967966,11.83726133,84.479,84.464,0.73332336]
[1771643970871,0.74765138,84.479,84.464,0.73332336]
[1771643973369,11.83740145,84.478,84.464,0.73332336]
[1771643973561,0.74765138,84.477,84.463,62.2]
[1771643979273,0.70186192,84.483,84.464,0.6890442]
[1771643980679,0.70186192,84.479,84.446,62.2]
[1771643981873,11.83740145,84.478,84.446,62.2]
[1771643982079,0.70186192,84.477,84.446,62.2]
[1771643982580,0.70186192,84.477,84.447,0.59634595]
[1771643985083,0.70186192,84.469,84.443,0.59840731]
[1771643985383,0.70186192,84.449,84.416,0.59840731]
[1771643986386,0.70186192,84.447,84.418,0.59941655]
[1771643988287,0.70186192,84.439,84.411,0.60139084]
[1771643988472,0.70186192,84.439,84.41,0.1]
[1771643988473,0.70186192,84.437,84.41,0.70236714]
[1771643989694,0.70186192,84.435,84.41,0.70236714]
[1771643990195,0.70186192,84.429,84.41,0.70236714]
[1771643992286,0.70186192,84.433,84.41,12.54925568]
[1771643992483,0.70186192,84.433,84.411,0.60524175]
[1771643993476,11.84385067,84.432,84.411,0.60524175]
[1771643998588,0.70186192,84.431,84.411,0.60524175]
[1771643998803,0.70186192,84.429,84.411,0.60524175]
[1771643999793,0.70186192,84.429,84.41,0.1]
[1771644000295,0.70186192,84.438,84.411,0.61239339]
[1771644000676,11.84314933,84.437,84.411,0.61239339]
[1771644000886,0.70186192,84.436,84.411,0.61239339]
[1771644002481,0.70186192,84.449,84.411,62.2]
[1771644002805,12.5426273,84.454,84.423,0.61491155]
[1771644003003,11.84076538,84.454,84.423,0.61491155]
[1771644003189,0.70186192,84.453,84.423,0.61491155]
[1771644005203,0.70186192,84.465,84.431,0.61653959]
[1771644005412,11.8386627,84.469,84.441,0.61653959]
[1771644007108,11.8386627,84.469,84.443,0.61812073]
[1771644008307,11.8386627,84.469,84.451,0.62042028]
[1771644012410,12.60931685,84.469,84.451,0.62042028]
[1771644012585,0.77065415,84.468,84.451,0.62042028]
[1771644017211,11.83894301,84.467,84.451,0.62042028]
[1771644017413,0.77065415,84.466,84.451,0.62042028]
[1771644018313,0.77065415,84.466,84.452,62.2]
[1771644018492,0.77065415,84.47,84.453,0.62680583]
[1771644020412,11.83836358,84.472,84.453,0.62680583]
[1771644021092,0.77065415,84.471,84.453,0.62680583]
[1771644021294,0.77065415,84.471,84.452,62.2]
[1771644021514,0.77065415,84.469,84.452,62.2]
[1771644024311,0.77065415,84.467,84.453,62.2]
[1771644030120,0.77065415,84.467,84.454,62.2]
[1771644032516,0.77065415,84.467,84.455,0.63410057]
[1771644038725,0.77065415,84.467,84.448,0.63708693]
[1771644040616,0.75705005,84.465,84.448,0.63708693]
[1771644041914,0.75705005,84.465,84.449,62.2]
[1771644044226,0.75705005,84.465,84.449,62.83905885]
[1771644046128,0.75705005,84.465,84.45,0.63982593]
[1771644047915,0.75705005,84.465,84.451,62.2]
[1771644048328,0.75705005,84.465,84.451,62.84057766]
[1771644053939,0.75705005,84.465,84.452,62.2]
[1771644059748,0.75705005,84.465,84.453,62.2]
[1771644060342,0.75705005,84.463,84.453,62.2]
[1771644062546,12.59598399,84.468,84.453,62.2]
[1771644062848,0.75705005,84.467,84.453,62.2]
[1771644064652,0.75705005,84.499,84.454,11.84064865]
[1771644064952,0.79221968,84.508,84.47,4.31203254]
[1771644065149,0.79221968,84.508,84.48,4.31203254]
[1771644066953,0.79221968,84.506,84.48,4.31203254]
[1771644067155,11.83333925,84.507,84.481,11.83698109]
[1771644067537,11.83333925,84.507,84.49,4.31203254]
[1771644067744,0.79221968,84.506,84.49,4.31203254]
[1771644071948,11.83165915,84.519,84.49,4.31203254]
[1771644072151,11.83165915,84.519,84.491,11.83558012]
[1771644072350,0.79221968,84.518,84.491,11.83558012]
[1771644076759,11.83193913,84.517,84.491,11.83558012]
[1771644076967,0.79221968,84.516,84.491,11.83558012]
[1771644077667,0.79221968,84.516,84.492,62.2]
[1771644077868,0.79221968,84.514,84.493,62.2]
[1771644079262,0.79221968,84.518,84.494,11.83515989]
[1771644079457,0.79221968,84.528,84.5,4.31203254]
[1771644080065,0.79221968,84.528,84.495,62.2]
[1771644080457,0.79221968,84.528,84.5,4.31203254]
[1771644081462,0.2,84.53,84.5,4.31203254]
[1771644081463,0.79221968,84.526,84.501,11.83417947]
[1771644083668,0.79221968,84.526,84.502,62.2]
[1771644085558,0.79221968,84.526,84.503,11.83389938]
[1771644085956,0.79221968,84.524,84.503,11.83389938]
[1771644086175,0.79221968,84.524,84.502,62.2]
[1771644087482,0.79221968,84.524,84.502,74.03402958]
[1771644089377,0.79221968,84.524,84.503,62.2]
[1771644090688,0.79221968,84.524,84.504,11.83375934]
[1771644095392,0.79221968,84.509,84.463,11.83950368]
[1771644095687,0.79221968,84.499,84.47,4.31203254]
[1771644097975,0.79221968,84.497,84.471,11.8383824]
[1771644100486,11.83459963,84.498,84.472,53.6795251]
[1771644101483,12.62681931,84.498,84.473,11.83810211]
[1771644103191,0.79221968,84.497,84.473,11.83810211]
[1771644104083,29.78281694,84.57,84.49,4.31203254]
[1771644104084,0.79221968,84.518,84.49,4.31203254]
[1771644104289,0.79221968,84.518,84.491,53.6795251]
[1771644104592,0.79221968,84.518,84.492,53.6795251]
[1771644105872,0.79221968,84.518,84.493,11.83529996]
[1771644106873,0.79221968,84.509,84.492,53.6795251]
[1771644107374,0.79221968,84.509,84.493,11.83529996]
[1771644109276,0.79221968,84.509,84.493,65.51482506]
[1771644113202,0.79221968,84.509,84.495,11.83501982]
[1771644113398,0.79221968,84.52,84.495,11.83501982]
[1771644114100,0.79221968,84.52,84.5,4.30700137]
[1771644114288,0.79221968,84.52,84.501,53.6795251]
[1771644116300,0.79221968,84.52,84.502,11.83403943]
[1771644119092,0.79221968,84.52,84.504,11.83375934]
[1771644121802,0.79221968,84.52,84.503,53.6795251]
[1771644122696,0.79221968,84.519,84.503,53.6795251]
[1771644122892,0.79221968,84.518,84.503,50.48981964]
[1771644124913,11.83081928,84.525,84.504,0.80263305]
[1771644125507,11.83081928,84.525,84.505,0.80263305]
[1771644125706,11.83039034,84.529,84.505,0.80263305]
[1771644130913,11.83039034,84.529,84.506,50.48981964]
[1771644131214,4.30700137,84.52,84.506,50.48981964]
[1771644132014,4.30700137,84.52,84.482,0.80263305]
[1771644132228,4.30700137,84.51,84.482,0.80263305]
[1771644132399,4.30700137,84.52,84.482,0.80263305]
[1771644135417,4.30700137,84.51,84.484,0.80263305]
[1771644136530,4.30700137,84.52,84.486,0.80263305]
[1771644136916,4.30700137,84.52,84.485,11.83642066]
[1771644136917,4.30700137,84.52,84.488,0.80263305]
[1771644138105,11.83165915,84.519,84.488,0.80263305]
[1771644142324,4.30700137,84.51,84.488,0.80263305]
[1771644142923,4.30700137,84.51,84.489,0.80263305]
[1771644146551,41.40590802,84.529,84.489,0.80263305]
[1771644146741,4.30700137,84.52,84.489,0.80263305]
[1771644148828,11.83165915,84.519,84.489,0.80263305]
[1771644156335,41.41080703,84.519,84.489,0.80263305]
[1771644156512,4.30700137,84.51,84.489,0.80263305]
[1771644157537,4.30700137,84.52,84.489,0.80263305]
[1771644159631,11.83165915,84.519,84.489,0.80263305]
[1771644162321,4.30700137,84.5,84.476,0.80263305]
[1771644162520,4.30700137,84.5,84.477,62.2]
[1771644164339,11.83445957,84.499,84.477,62.2]
[1771644164938,11.83445957,84.499,84.477,63.00263305]
[1771644165840,11.83445957,84.499,84.477,62.2]
[1771644166042,4.31002608,84.5,84.478,0.80263305]
[1771644166531,4.31002608,84.5,84.478,63.00263305]
[1771644167538,11.83445957,84.499,84.479,0.80263305]
[1771644167941,11.8330592,84.509,84.479,0.80263305]
[1771644169544,11.8330592,84.509,84.48,0.80263305]
[1771644170740,11.8330592,84.509,84.482,0.80263305]
[1771644175461,11.83165915,84.519,84.483,11.83670087]
[1771644175747,11.83165915,84.519,84.484,0.80263305]
[1771644177648,4.31002608,84.51,84.484,0.80263305]
[1771644181455,11.8330592,84.509,84.486,0.80263305]
[1771644187263,41.41080703,84.519,84.488,0.80263305]
[1771644195468,41.41080703,84.519,84.491,0.80263305]
[1771644198362,41.40590802,84.529,84.491,0.80263305]
[1771644201749,11.83025943,84.529,84.501,0.80263305]
[1771644202048,11.83025943,84.529,84.511,0.80263305]
[1771644202454,0.2,84.53,84.511,0.80263305]
[1771644203271,12.03017994,84.53,84.511,0.80263305]
[1771644203463,12.03017994,84.53,84.501,0.80263305]
[1771644205049,12.03017994,84.53,84.503,0.80263305]
[1771644205663,12.03017994,84.53,84.511,0.80263305]
[1771644234696,0.2,84.53,84.513,0.80263305]
[1771644235075,0.2,84.53,84.512,11.83263915]
[1771644235076,1e-08,84.54,84.521,0.80263305]
[1771644235276,1e-08,84.54,84.52,4.3055008]
[1771644235277,0.2,84.55,84.531,0.80263305]
[1771644235597,0.2,84.55,84.52,4.3055008]
[1771644235598,0.2,84.56,84.551,0.80263305]
[1771644236096,11.82487479,84.568,84.551,0.80263305]
[1771644236393,0.2,84.58,84.551,0.80263305]
[1771644237102,0.2,84.58,84.561,0.80263305]
[1771644238886,0.2,84.58,84.563,0.80263305]
[1771644239883,0.2,84.58,84.565,0.80263305]
[1771644242493,0.2,84.58,84.567,0.80263305]
[1771644244903,0.34871769,84.578,84.56,4.3055008]
[1771644246904,0.34871769,84.578,84.561,0.58790479]
[1771644255103,0.34871769,84.578,84.56,4.3055008]
[1771644255705,0.32724487,84.576,84.549,0.51787346]
[1771644257917,0.32421832,84.574,84.551,0.51787346]
[1771644261415,0.3198076,84.572,84.551,0.51787346]
[1771644267506,0.31143179,84.57,84.551,0.51787346]
[1771644271717,0.50488204,84.58,84.561,0.51787346]
[1771644271926,11.8233816,84.579,84.561,0.51787346]
[1771644274632,0.30236625,84.576,84.561,0.51787346]
[1771644275129,0.30236625,84.576,84.552,11.82704134]
[1771644275329,0.30236625,84.576,84.553,0.51787346]
[1771644278944,11.823825,84.575,84.553,0.51787346]
[1771644279131,12.11898343,84.575,84.553,0.51787346]
[1771644279341,0.29515843,84.574,84.553,0.51787346]
[1771644285141,0.2884333,84.572,84.553,0.51787346]
[1771644286128,0.28735707,84.569,84.531,0.53616435]
[1771644286526,0.28735707,84.569,84.541,0.53616435]
[1771644287133,0.2862932,84.567,84.541,0.53616435]
[1771644288740,0.28420199,84.565,84.541,0.53616435]
[1771644291039,11.82536303,84.564,84.541,0.53616435]
[1771644291235,0.28215853,84.563,84.541,0.53616435]
[1771644296939,11.82564272,84.562,84.541,0.53616435]
[1771644297128,0.27630396,84.561,84.541,0.53616435]
[1771644299238,11.82466388,84.569,84.541,12.36472416]
[1771644299439,11.82466388,84.569,84.542,0.53616435]
[1771644299639,11.82423928,84.573,84.561,0.53616435]
[1771644300843,11.82326582,84.579,84.561,0.53616435]
[1771644301043,0.2,84.58,84.561,0.53616435]
[1771644304559,0.2,84.58,84.562,11.82564272]
[1771644304740,0.2,84.58,84.563,0.53616435]
[1771644306338,11.82237822,84.586,84.565,0.53616435]
[1771644307466,0.2,84.59,84.565,0.53616435]
[1771644307633,0.26574476,84.588,84.56,4.30239261]
[1771644307838,0.26574476,84.588,84.561,0.5223013]
[1771644308356,0.26492913,84.586,84.562,0.5223013]
[1771644309360,0.26492913,84.586,84.564,0.5223013]
[1771644312466,0.26175923,84.584,84.564,0.5223013]
[1771644313964,0.26175923,84.584,84.566,0.5223013]
[1771644321780,0.25444668,84.579,84.541,0.5223013]
[1771644321961,0.25444668,84.569,84.541,0.5223013]
[1771644325977,11.82407378,84.574,84.551,0.5223013]
[1771644326277,11.82256691,84.584,84.561,0.5223013]
[1771644326578,12.07431705,84.584,84.561,0.5223013]
[1771644326766,0.25109526,84.583,84.561,0.5223013]
[1771644328975,11.82284646,84.582,84.561,0.5223013]
[1771644329154,0.24980796,84.581,84.561,0.5223013]
[1771644330360,11.82312603,84.58,84.561,0.5223013]
[1771644334573,0.24671689,84.579,84.561,0.5223013]
[1771644337783,0.24671689,84.579,84.555,11.8265397]
[1771644337784,0.44379932,84.577,84.551,62.2]
[1771644338574,0.44379932,84.577,84.546,11.82780185]
[1771644339684,11.8236852,84.576,84.547,0.51151602]
[1771644339963,0.44267866,84.575,84.547,0.51151602]
[1771644341465,11.82396481,84.574,84.547,0.51151602]
[1771644341981,0.4415836,84.573,84.547,0.51151602]
[1771644343576,0.44104549,84.569,84.538,0.51151602]
[1771644349997,0.43744783,84.567,84.538,0.51151602]
[1771644351484,0.43695722,84.565,84.538,0.51151602]
[1771644354299,0.43551893,84.559,84.538,0.51151602]
[1771644357907,0.43367715,84.563,84.54,0.51151602]
[1771644359311,11.82564272,84.562,84.54,0.51151602]
[1771644367517,0.42942839,84.562,84.54,0.51151602]
[1771644370519,11.82578257,84.561,84.54,0.51151602]
[1771644371727,11.82439982,84.571,84.542,0.48655086]
[1771644371906,11.82326582,84.579,84.551,0.48655086]
[1771644372312,0.427105,84.578,84.551,0.48655086]
[1771644372706,0.42673319,84.576,84.551,0.48655086]
[1771644377312,0.42528815,84.574,84.551,0.48655086]
[1771644380607,0.42424736,84.572,84.551,0.48655086]
[1771644381721,0.42357327,84.57,84.551,0.48655086]
[1771644382118,11.82438424,84.571,84.551,0.48655086]
[1771644382422,0.42357327,84.57,84.551,0.48655086]
[1771644383726,11.82466388,84.569,84.551,0.48655086]
[1771644383935,0.42291458,84.568,84.551,0.48655086]
[1771644384534,0.42291458,84.568,84.547,0.48655086]
[1771644384742,0.42291458,84.568,84.544,62.2]
[1771644385833,0.42227093,84.566,84.544,62.68655086]
[1771644386027,0.42227093,84.566,84.545,0.48655086]
[1771644388127,0.42164199,84.559,84.517,0.48655086]
[1771644388312,0.42164199,84.559,84.521,0.48655086]
[1771644390313,11.82562134,84.563,84.54,4.30289271]
[1771644390625,0.4210274,84.579,84.551,0.48655086]
[1771644391621,0.4207254,84.578,84.551,0.48655086]
[1771644392427,11.8235454,84.577,84.551,0.48655086]
[1771644393532,0.42013175,84.577,84.551,0.48655086]
[1771644394932,0.42013175,84.577,84.552,0.48655086]
[1771644395742,11.8236852,84.576,84.552,0.48655086]
[1771644397635,0.41870628,84.588,84.561,0.49542364]
[1771644400445,0.2,84.59,84.571,0.49542364]
[1771644400631,11.82186809,84.589,84.571,0.49542364]
[1771644400940,0.41762372,84.588,84.571,0.49542364]
[1771644403534,0.41710092,84.588,84.561,0.49542364]
[1771644403729,0.41710092,84.588,84.553,11.82683635]
[1771644403933,4.30289271,84.58,84.554,0.49542364]
[1771644404134,0.41684401,84.579,84.554,0.49542364]
[1771644404731,0.41684401,84.579,84.547,0.49542364]
[1771644405933,0.41633902,84.577,84.547,0.49542364]
[1771644409950,0.41536336,84.575,84.547,0.49542364]
[1771644411951,0.41489219,84.573,84.547,0.49542364]
[1771644413751,11.82396481,84.574,84.551,0.49542364]
[1771644414052,0.41443177,84.578,84.551,0.49542364]
[1771644415854,0.41398187,84.576,84.551,0.49542364]
[1771644416556,0.41398187,84.576,84.541,62.2]
[1771644416557,0.41398187,84.576,84.542,0.49542364]
[1771644416771,0.41376079,84.569,84.542,0.49542364]
[1771644417750,0.41354225,84.567,84.541,62.2]
[1771644417955,0.41354225,84.559,84.541,62.2]
[1771644418156,0.41354225,84.559,84.538,0.49542364]
[1771644418555,0.41354225,84.559,84.527,62.2]
[1771644418556,0.41354225,84.559,84.527,62.69542364]
[1771644418758,0.41354225,84.549,84.527,62.69542364]
[1771644418948,11.8248037,84.568,84.531,0.49542364]
[1771644419149,0.41332621,84.567,84.531,0.49542364]
[1771644420079,0.41311266,84.565,84.533,0.49542364]
[1771644421547,11.82340561,84.578,84.541,0.49542364]
[1771644421748,11.82340561,84.578,84.551,0.49542364]
[1771644422449,12.2360985,84.578,84.551,0.49542364]
[1771644428154,11.8236852,84.576,84.551,0.49542364]
[1771644428343,12.23479272,84.576,84.551,0.49542364]
[1771644429952,0.41073354,84.575,84.551,0.49542364]
[1771644431268,0.41054977,84.573,84.551,0.49542364]
[1771644431950,0.41054977,84.573,84.541,62.2]
[1771644432157,0.41036811,84.569,84.542,0.47880198]
[1771644434457,0.41001102,84.567,84.542,0.47880198]
[1771644436578,11.82508336,84.566,84.542,0.47880198]
[1771644440073,11.82466388,84.569,84.542,0.47880198]
[1771644441350,0.40882424,84.569,84.542,0.47880198]
[1771644445577,12.23299164,84.568,84.542,0.47880198]
[1771644445777,0.40803341,84.567,84.542,0.47880198]
[1771644446160,0.40803341,84.559,84.534,0.47880198]
[1771644447877,0.40803341,84.559,84.536,0.47880198]
[1771644449281,0.40758038,84.558,84.536,0.47880198]
[1771644450883,0.40728696,84.556,84.536,0.47880198]
[1771644453678,11.82634199,84.557,84.523,62.2]
[1771644453679,29.55894833,84.577,84.541,0.47880198]
[1771644453870,0.40685936,84.576,84.541,0.47880198]
[1771644455582,4.30227624,84.58,84.551,0.47880198]
[1771644457279,11.82326582,84.579,84.551,0.47880198]
[1771644459292,0.40604735,84.584,84.551,0.47880198]
[1771644460967,0.40578895,84.582,84.551,0.47880198]
[1771644462382,11.82270669,84.583,84.561,0.47206763]
[1771644464990,0.40528973,84.586,84.561,0.47206763]
[1771644467286,12.22747577,84.585,84.561,0.47206763]
[1771644467674,0.40493016,84.584,84.561,0.47206763]
[1771644469590,12.22751973,84.583,84.561,0.47206763]
[1771644470193,0.40469727,84.582,84.561,0.47206763]
[1771644470579,11.82298624,84.581,84.561,0.47206763]
[1771644472089,12.22745595,84.581,84.561,0.47206763]
[1771644472988,0.40435788,84.58,84.561,0.47206763]
[1771644475889,11.82270669,84.583,84.561,0.47206763]
[1771644479598,0.40371339,84.583,84.561,0.47206763]
[1771644480985,11.82284646,84.582,84.561,0.47206763]
[1771644481184,12.22635476,84.582,84.561,0.47206763]
[1771644481600,0.4035083,84.581,84.561,0.47206763]
[1771644482003,11.82312603,84.58,84.561,0.47206763]
[1771644487797,11.82186809,84.589,84.563,0.47368268]
[1771644487986,11.82186809,84.589,84.571,0.47368268]
[1771644488192,12.02185369,84.59,84.571,0.47368268]
[1771644492607,0.2,84.6,84.58,4.30095849]
[1771644492799,0.2,84.6,84.581,0.47368268]
[1771644493701,11.82047069,84.599,84.581,0.47368268]
[1771644494302,0.40211226,84.598,84.581,0.47368268]
[1771644495318,0.40202751,84.596,84.572,62.2]
[1771644496000,0.40202751,84.596,84.569,0.47368268]
[1771644499394,0.40169815,84.594,84.563,0.47368268]
[1771644499616,0.40169815,84.589,84.561,62.2]
[1771644499799,0.40169815,84.589,84.559,0.47368268]
[1771644500621,0.40161815,84.587,84.559,0.47368268]
[1771644501516,11.82228737,84.586,84.559,0.47368268]
[1771644501708,0.40153908,84.585,84.559,0.47368268]
[1771644504022,0.40130727,84.583,84.559,0.47368268]
[1771644509720,11.82284646,84.582,84.559,0.47368268]
[1771644509926,0.40086707,84.581,84.559,0.47368268]
[1771644510631,11.82312603,84.58,84.559,0.47368268]
[1771644513518,11.82312603,84.58,84.561,0.47368268]
[1771644516236,0.40045635,84.579,84.561,0.47368268]
[1771644520339,11.82340561,84.578,84.561,0.47368268]
[1771644527828,0.39965836,84.577,84.561,0.47368268]
[1771644528334,0.39965836,84.577,84.55,0.47991269]